bitfinex-derivatives/quotes_BTCF0:USTF0_20250416
["timestamp","ask_amount","ask_price","bid_price","bid_amount"]
[1744780592453,0.1497116,83807.0,83806.0,0.4801327]
[1744780593561,0.1497116,83807.0,83806.0,0.49242978]
[1744780594362,0.1497116,83807.0,83806.0,0.4801327]
[1744780596664,0.1497116,83807.0,83806.0,0.49216883]
[1744780597959,0.15895404,83807.0,83806.0,0.49216883]
[1744780599166,0.15895404,83807.0,83806.0,0.4801327]
[1744780605162,0.1515069,83826.0,83825.0,0.1193056]
[1744780605360,0.1515069,83826.0,83825.0,0.4801056]
[1744780605361,0.1193069,83826.0,83825.0,0.4801056]
[1744780605969,0.1193869,83826.0,83825.0,0.4801056]
[1744780606657,0.1193869,83826.0,83825.0,0.4811056]
[1744780607374,8e-05,83826.0,83825.0,0.4811056]
[1744780607669,0.1192995,83830.0,83829.0,0.1193]
[1744780607864,0.1192995,83830.0,83829.0,0.12809939]
[1744780608364,0.09155651,83831.0,83830.0,0.1192985]
[1744780609061,0.09155651,83831.0,83830.0,0.1500985]
[1744780609467,0.03190801,83831.0,83830.0,0.1500985]
[1744780609665,0.00010801,83831.0,83830.0,0.1500985]
[1744780610570,0.00010801,83831.0,83830.0,0.1812985]
[1744780610765,0.0596288,83859.0,83851.0,0.119266]
[1744780610971,0.1789065,83851.0,83848.0,0.3608]
[1744780611271,0.0596329,83854.0,83851.0,0.0596336]
[1744780611476,0.0596329,83854.0,83853.0,0.1192658]
[1744780611970,0.1193472,83854.0,83853.0,0.1192658]
[1744780612171,8e-05,83854.0,83853.0,0.1192658]
[1744780613271,0.1193444,83854.0,83853.0,0.1192658]
[1744780613573,0.1193444,83854.0,83853.0,0.1202658]
[1744780614965,0.1193444,83854.0,83853.0,0.1507658]
[1744780615362,0.1193444,83854.0,83853.0,0.1202658]
[1744780615563,0.1193444,83854.0,83853.0,0.001]
[1744780617766,0.12834794,83854.0,83853.0,0.001]
[1744780618684,0.12834794,83854.0,83853.0,0.1202658]
[1744780619570,0.12834794,83854.0,83853.0,0.1808658]
[1744780619773,0.12826794,83854.0,83853.0,0.1808658]
[1744780619967,0.12834794,83854.0,83853.0,0.1808658]
[1744780622066,0.00908354,83854.0,83853.0,0.1808658]
[1744780622472,0.00010801,83859.0,83853.0,0.1808658]
[1744780622676,0.1242502,83864.0,83863.0,0.1192516]
[1744780623378,0.1242502,83864.0,83863.0,0.1827516]
[1744780624376,0.1242502,83864.0,83863.0,0.1837516]
[1744780629081,0.1242502,83864.0,83863.0,0.5445516]
[1744780630172,0.1571502,83864.0,83863.0,0.5445516]
[1744780631584,0.1571502,83864.0,83863.0,0.4253]
[1744780631981,0.1886502,83864.0,83863.0,0.001]
[1744780632979,0.1789023,83852.0,83850.0,0.0315]
[1744780633174,0.0611,83851.0,83850.0,0.1507701]
[1744780633580,0.1192743,83847.0,83846.0,0.3608]
[1744780633980,0.1803743,83847.0,83846.0,0.3923]
[1744780634486,0.1803743,83847.0,83846.0,0.4249]
[1744780634676,0.1803743,83847.0,83846.0,0.5441758]
[1744780636782,0.2385388,83854.0,83853.0,0.0596322]
[1744780637083,0.1522634,83855.0,83854.0,0.1192644]
[1744780637879,0.1523434,83855.0,83854.0,0.1516644]
[1744780638086,0.1543434,83855.0,83854.0,0.1526644]
[1744780639783,0.1533434,83855.0,83854.0,0.1516644]
[1744780640892,0.00510801,83864.0,83863.0,0.1192516]
[1744780641091,0.1242502,83864.0,83863.0,0.4800516]
[1744780641383,0.1243302,83864.0,83863.0,0.4800516]
[1744780641789,0.00508,83864.0,83863.0,0.4800516]
[1744780642587,0.00508,83864.0,83863.0,0.49192616]
[1744780642891,0.1243302,83864.0,83863.0,0.49192616]
[1744780643092,0.1568302,83864.0,83863.0,0.49192616]
[1744780643392,0.1568302,83864.0,83863.0,0.52522616]
[1744780643583,0.1568302,83864.0,83863.0,0.5133516]
[1744780644997,0.1568302,83864.0,83863.0,0.1525516]
[1744780645195,0.1568302,83864.0,83863.0,0.5133516]
[1744780645690,0.1568302,83864.0,83863.0,0.1525516]
[1744780648689,0.1869302,83864.0,83863.0,0.1525516]
[1744780649287,0.1869302,83864.0,83863.0,0.1843516]
[1744780649896,0.1568302,83864.0,83863.0,0.1843516]
[1744780650095,0.1869302,83864.0,83863.0,0.1843516]
[1744780650593,0.06768,83864.0,83858.0,0.0322]
[1744780650793,0.1788894,83859.0,83858.0,0.1192576]
[1744780650991,0.0596293,83859.0,83858.0,0.1838576]
[1744780651391,0.06768,83864.0,83861.0,0.0596272]
[1744780651692,0.3061046,83864.0,83863.0,0.1192516]
[1744780651894,0.3061846,83864.0,83863.0,0.1192516]
[1744780652484,0.1788873,83860.0,83859.0,0.1192564]
[1744780652689,0.2385159,83860.0,83859.0,0.1192564]
[1744780652889,0.1192572,83860.0,83859.0,0.1192564]
[1744780653898,0.1192572,83860.0,83859.0,0.1508564]
[1744780654799,0.1192572,83860.0,83859.0,0.1192564]
[1744780656398,0.1192587,83858.0,83857.0,0.0316]
[1744780656694,0.1192601,83857.0,83855.0,0.0596314]
[1744780656896,0.1813601,83857.0,83855.0,0.0596314]
[1744780657294,0.1813601,83857.0,83854.0,0.0327]
[1744780657691,0.1192758,83846.0,83845.0,0.01231159]
[1744780657896,0.1192758,83846.0,83845.0,0.13158879]
[1744780658101,0.1192758,83846.0,83845.0,0.11945617]
[1744780658299,0.2134758,83846.0,83845.0,0.11945617]
[1744780659300,0.2134758,83846.0,83845.0,0.00017897]
[1744780659597,0.5742758,83846.0,83845.0,0.00017897]
[1744780660006,0.1192971,83831.0,83830.0,0.1849978]
[1744780660301,0.1192971,83831.0,83830.0,0.0657]
[1744780660902,0.12826602,83831.0,83830.0,0.1849985]
[1744780662408,0.12826602,83831.0,83830.0,0.0657]
[1744780662706,0.12826602,83831.0,83830.0,0.0327]
[1744780662908,0.15996602,83831.0,83830.0,0.0327]
[1744780664308,0.1192985,83830.0,83829.0,0.00879939]
[1744780664504,0.1193042,83826.0,83825.0,0.4239]
[1744780665099,0.1193042,83826.0,83825.0,0.07201889]
[1744780665306,0.1193042,83826.0,83825.0,0.03891889]
[1744780665307,0.12827312,83826.0,83825.0,0.03891889]
[1744780665512,0.16117312,83826.0,83825.0,0.03891889]
[1744780665809,0.19157312,83826.0,83825.0,0.15822449]
[1744780669309,0.19157312,83826.0,83825.0,0.03891889]
[1744780670413,0.19157312,83826.0,83825.0,0.15822449]
[1744780671220,0.19157312,83826.0,83825.0,0.03891889]
[1744780671419,0.19157312,83826.0,83825.0,0.15822449]
[1744780673719,0.19157312,83826.0,83825.0,0.19032449]
[1744780674725,0.15867312,83826.0,83825.0,0.19032449]
[1744780675321,0.15867312,83826.0,83825.0,0.55112449]
[1744780675833,0.12827312,83826.0,83825.0,0.55112449]
[1744780678332,0.16017312,83826.0,83825.0,0.55112449]
[1744780683124,0.16017312,83826.0,83825.0,0.19032449]
[1744780683328,0.16017312,83826.0,83825.0,0.55112449]
[1744780684226,0.16017312,83826.0,83825.0,0.19032449]
[1744780684427,0.16017312,83826.0,83825.0,0.55112449]
[1744780685129,0.16017312,83826.0,83825.0,0.19032449]
[1744780685329,0.16017312,83826.0,83825.0,0.55112449]
[1744780685922,0.16017312,83826.0,83825.0,0.43181889]
[1744780686128,0.16017312,83826.0,83825.0,0.36971889]
[1744780686329,0.19057312,83826.0,83825.0,0.36971889]
[1744780686535,0.1193085,83823.0,83822.0,0.00017897]
[1744780686725,0.12827742,83823.0,83822.0,0.00017897]
[1744780686926,0.19077742,83823.0,83822.0,0.00017897]
[1744780688431,0.15857742,83823.0,83822.0,0.11948887]
[1744780688633,0.15865742,83823.0,83822.0,0.11948887]
[1744780689334,0.15865742,83823.0,83822.0,0.18348887]
[1744780689637,0.15865742,83823.0,83822.0,0.54428887]
[1744780689839,0.15857742,83823.0,83822.0,0.54428887]
[1744780690041,0.15865742,83823.0,83822.0,0.54428887]
[1744780690240,0.15857742,83823.0,83822.0,0.54428887]
[1744780690431,0.15865742,83823.0,83822.0,0.54428887]
[1744780692234,0.15865742,83823.0,83822.0,0.18348887]
[1744780692735,0.15865742,83823.0,83822.0,0.06417897]
[1744780692935,0.15865742,83823.0,83822.0,0.18348887]
[1744780693436,0.15865742,83823.0,83822.0,0.03167897]
[1744780693637,0.15865742,83823.0,83822.0,0.00017897]
[1744780693838,0.19045742,83823.0,83822.0,0.00017897]
[1744780704943,0.15865742,83823.0,83822.0,0.00017897]
[1744780705249,0.15857742,83823.0,83822.0,0.11948887]
[1744780705449,0.03934892,83823.0,83822.0,0.48028887]
[1744780705644,0.00904892,83823.0,83822.0,0.48028887]
[1744780705842,0.12827742,83823.0,83822.0,0.54278887]
[1744780706046,0.12835742,83823.0,83822.0,0.54278887]
[1744780706242,0.16145742,83823.0,83822.0,0.54278887]
[1744780707352,0.16145742,83823.0,83822.0,0.18198887]
[1744780709637,0.16145742,83823.0,83822.0,0.06267897]
[1744780710149,0.16145742,83823.0,83822.0,0.18198887]
[1744780710544,0.16145742,83823.0,83822.0,0.06267897]
[1744780716153,0.52225742,83823.0,83822.0,0.06267897]
[1744780716853,0.52225742,83823.0,83822.0,0.18198887]
[1744780717056,0.16145742,83823.0,83822.0,0.18198887]
[1744780717754,0.12835742,83823.0,83822.0,0.18198887]
[1744780718750,0.16045742,83823.0,83822.0,0.06267897]
[1744780719150,0.16045742,83823.0,83822.0,0.18198887]
[1744780719755,0.16045742,83823.0,83822.0,0.06267897]
[1744780719950,0.16045742,83823.0,83822.0,0.00017897]
[1744780720455,0.16045742,83823.0,83822.0,2.875e-05]
[1744780721356,0.19365742,83823.0,83822.0,2.875e-05]
[1744780731558,0.1193156,83818.0,83817.0,0.063]
[1744780732062,0.1493156,83818.0,83817.0,0.063]
[1744780732464,0.15828452,83818.0,83817.0,0.063]
[1744780735368,0.15828452,83818.0,83817.0,0.182317]
[1744780736862,0.00896892,83818.0,83817.0,0.182317]
[1744780737463,0.00904892,83818.0,83817.0,0.182317]
[1744780737762,0.00896892,83818.0,83817.0,0.182317]
[1744780737970,0.00904892,83818.0,83817.0,0.182317]
[1744780738467,0.00904892,83818.0,83817.0,0.063]
[1744780738672,0.12836452,83818.0,83817.0,0.182317]
[1744780739168,0.00904892,83818.0,83817.0,0.182317]
[1744780739569,0.04124892,83818.0,83817.0,0.182317]
[1744780739767,0.16056452,83818.0,83817.0,0.182317]
[1744780742370,0.16056452,83818.0,83817.0,0.063]
[1744780743274,0.119317,83817.0,83816.0,0.00873211]
[1744780743472,0.1193256,83811.0,83810.0,0.0619]
[1744780743980,0.1193256,83811.0,83810.0,0.00894202]
[1744780743981,0.5106256,83811.0,83810.0,0.00894202]
[1744780744163,0.1193398,83801.0,83800.0,0.0303]
[1744780744365,0.1193541,83791.0,83790.0,0.0628]
[1744780744562,0.4801541,83791.0,83790.0,0.0619]
[1744780745169,0.5131541,83791.0,83790.0,0.0619]
[1744780745362,0.5131541,83791.0,83790.0,0.0669]
[1744780745961,0.5131541,83791.0,83790.0,0.0659]
[1744780747466,0.52212302,83791.0,83790.0,0.0659]
[1744780747667,0.52212302,83791.0,83790.0,0.0343]
[1744780747874,0.52212302,83791.0,83790.0,0.004]
[1744780748672,0.1193626,83785.0,83784.0,0.0631]
[1744780748975,0.1193626,83785.0,83784.0,0.182464]
[1744780749676,0.12833152,83785.0,83784.0,0.182464]
[1744780750273,0.12833152,83785.0,83784.0,0.19121514]
[1744780751275,0.12833152,83785.0,83784.0,0.19221514]
[1744780753376,0.16033152,83785.0,83784.0,0.19221514]
[1744780754083,0.00896892,83785.0,83784.0,0.19221514]
[1744780754277,0.00904892,83785.0,83784.0,0.19221514]
[1744780754578,0.12841152,83785.0,83784.0,0.19221514]
[1744780758878,0.12841152,83785.0,83784.0,0.07285114]
[1744780759279,0.16091152,83785.0,83784.0,0.07285114]
[1744780759675,0.19351152,83785.0,83784.0,0.04185114]
[1744780760889,0.0596881,83776.0,83772.0,0.3608]
[1744780761085,0.1193783,83774.0,83773.0,0.0331]
[1744780761282,0.12834722,83774.0,83773.0,0.0331]
[1744780761587,0.19104722,83774.0,83773.0,0.0331]
[1744780761779,0.19104722,83774.0,83773.0,0.066]
[1744780761974,0.16024722,83774.0,83773.0,0.1853797]
[1744780762588,0.16024722,83774.0,83773.0,0.1863797]
[1744780763389,0.16024722,83774.0,83773.0,0.19519357]
[1744780764390,0.00896892,83774.0,83773.0,0.19519357]
[1744780764685,0.00017897,83782.0,83781.0,0.1193683]
[1744780765275,0.00017897,83782.0,83781.0,0.1832683]
[1744780765478,0.00025897,83782.0,83781.0,0.1832683]
[1744780766280,0.00225897,83782.0,83781.0,0.1832683]
[1744780769979,0.00225897,83782.0,83781.0,0.17729645]
[1744780770989,0.12162587,83782.0,83781.0,0.17729645]
[1744780771180,0.15212587,83782.0,83781.0,0.17729645]
[1744780776599,0.1193697,83780.0,83779.0,0.3608]
[1744780776791,0.1193697,83780.0,83779.0,0.4801712]
[1744780776991,0.1494697,83780.0,83779.0,0.4801712]
[1744780777196,0.15941826,83780.0,83779.0,0.5132712]
[1744780777395,0.15941826,83780.0,83779.0,0.5447712]
[1744780778599,0.16041826,83780.0,83779.0,0.5447712]
[1744780781602,0.16041826,83780.0,83779.0,0.3608]
[1744780781900,0.19311826,83780.0,83779.0,0.4801712]
[1744780782407,0.19311826,83780.0,83779.0,0.5420712]
[1744780783998,0.19311826,83780.0,83779.0,0.1812712]
[1744780785095,0.19311826,83780.0,83779.0,0.17529901]
[1744780785303,0.1193783,83774.0,83773.0,0.06850337]
[1744780785500,0.1193783,83774.0,83773.0,0.00881387]
[1744780785706,0.1193826,83771.0,83770.0,0.0647]
[1744780785905,0.1193826,83771.0,83770.0,0.00887107]
[1744780786208,0.119384,83770.0,83769.0,0.3608]
[1744780786398,0.119384,83770.0,83769.0,0.4801854]
[1744780786600,0.149484,83770.0,83769.0,0.4801854]
[1744780786902,0.149484,83770.0,83769.0,0.5448854]
[1744780787104,0.15943256,83770.0,83769.0,0.5448854]
[1744780788319,0.15943256,83770.0,83769.0,0.55385329]
[1744780788816,0.15943256,83770.0,83769.0,0.55585329]
[1744780790011,0.15943256,83770.0,83769.0,0.19505329]
[1744780790219,0.15943256,83770.0,83769.0,0.07566789]
[1744780790516,0.19003256,83770.0,83769.0,0.01096789]
[1744780791729,0.19003256,83770.0,83769.0,0.13035329]
[1744780792512,0.19003256,83770.0,83769.0,0.01096789]
[1744780793419,0.19003256,83770.0,83769.0,0.002]
[1744780801228,0.1193897,83766.0,83765.0,0.00017897]
[1744780801525,0.1193968,83761.0,83760.0,0.0302]
[1744780802319,0.12934536,83761.0,83760.0,0.0302]
[1744780802520,0.19264536,83761.0,83760.0,0.0302]
[1744780803119,0.19264536,83761.0,83760.0,0.0322]
[1744780804724,0.19264536,83761.0,83760.0,0.002]
[1744780806928,0.55344536,83761.0,83760.0,0.002]
[1744780808430,0.0596991,83760.0,83757.0,0.00513387]
[1744780808630,0.1194011,83758.0,83757.0,0.00513387]
[1744780809136,0.1827011,83758.0,83757.0,0.00513387]
[1744780809628,0.19264966,83758.0,83757.0,0.00713387]
[1744780811728,0.55344966,83758.0,83757.0,0.00713387]
[1744780812820,0.55344966,83758.0,83752.0,0.00017908]
[1744780812821,0.1194082,83753.0,83752.0,0.00017908]
[1744780813226,0.1503082,83753.0,83752.0,0.00017908]
[1744780813428,0.16025676,83753.0,83752.0,0.00017908]
[1744780814124,0.19095676,83753.0,83752.0,0.00017908]
[1744780815326,0.19095676,83753.0,83752.0,0.00317908]
[1744780816031,0.19195676,83753.0,83752.0,0.00017908]
[1744780816837,0.16125676,83753.0,83752.0,0.00017908]
[1744780818133,0.19145676,83753.0,83752.0,0.00017908]
[1744780820138,0.20348863,83753.0,83752.0,0.00017908]
[1744780820539,0.56428863,83753.0,83752.0,0.00017908]
[1744780822236,0.1194125,83750.0,83749.0,1e-08]
[1744780822436,0.0597051,83752.0,83738.0,0.4802272]
[1744780822645,0.1194282,83739.0,83738.0,0.5399419]
[1744780823339,0.12937676,83739.0,83738.0,0.5399419]
[1744780824142,0.12937676,83739.0,83738.0,0.5487479]
[1744780825136,0.16207676,83739.0,83738.0,0.369606]
[1744780825340,0.16207676,83739.0,83738.0,0.4890356]
[1744780825736,0.16207676,83739.0,83738.0,0.4920356]
[1744780826239,0.16207676,83739.0,83738.0,0.5571356]
[1744780828739,0.12937676,83739.0,83738.0,0.5571356]
[1744780830742,0.16037676,83739.0,83738.0,0.437706]
[1744780830937,0.16037676,83739.0,83738.0,0.3638]
[1744780831138,0.19197676,83739.0,83738.0,0.3638]
[1744780835146,0.19197676,83739.0,83738.0,0.003]
[1744780837245,0.16037676,83739.0,83738.0,0.003]
[1744780837639,0.16045676,83739.0,83738.0,0.003]
[1744780838334,0.22425676,83739.0,83738.0,0.003]
[1744780838849,0.1194339,83735.0,83734.0,0.03906502]
[1744780839244,0.1815339,83735.0,83734.0,0.03906502]
[1744780839444,0.19148246,83735.0,83734.0,0.03906502]
[1744780839944,0.19148246,83735.0,83734.0,0.07136502]
[1744780841248,0.19148246,83735.0,83734.0,0.0682]
[1744780841550,0.1194467,83726.0,83725.0,0.0328]
[1744780841741,0.4802467,83726.0,83725.0,0.0952]
[1744780841936,0.49019526,83726.0,83725.0,0.0952]
[1744780842142,0.49019526,83726.0,83725.0,0.22349533]
[1744780842344,0.52039526,83726.0,83725.0,0.22349533]
[1744780842743,0.52039526,83726.0,83725.0,0.10604723]
[1744780842947,0.52047526,83726.0,83725.0,0.10604723]
[1744780843646,0.52047526,83726.0,83725.0,0.22549533]
[1744780843841,0.52047526,83726.0,83725.0,0.10604723]
[1744780846040,0.52047526,83726.0,83725.0,0.22549533]
[1744780847242,0.52047526,83726.0,83725.0,0.10604723]
[1744780847446,0.40102856,83726.0,83705.0,0.00513706]
[1744780847741,0.4802724,83708.0,83707.0,0.0619]
[1744780847939,0.4802724,83708.0,83707.0,0.07085963]
[1744780848350,0.49022096,83708.0,83707.0,0.07085963]
[1744780848942,0.49022096,83708.0,83707.0,0.07385963]
[1744780850150,0.49022096,83708.0,83707.0,0.0649]
[1744780855149,0.49022096,83708.0,83707.0,0.003]
[1744780855353,0.52082096,83708.0,83707.0,0.003]
[1744780857346,0.1194738,83707.0,83706.0,0.0327]
[1744780857550,0.1513738,83707.0,83706.0,0.0327]
[1744780857753,0.1833738,83707.0,83706.0,0.0327]
[1744780857949,0.19332236,83707.0,83706.0,0.0327]
[1744780858855,0.19332236,83707.0,83706.0,0.0337]
[1744780860055,0.19332236,83707.0,83706.0,0.001]
[1744780860256,0.0597389,83705.0,83681.0,0.0597554]
[1744780860459,0.1195024,83689.0,83688.0,0.0597504]
[1744780861157,0.1524024,83689.0,83688.0,0.0597504]
[1744780861358,0.10259886,83689.0,83688.0,0.00915609]
[1744780861557,0.13329886,83689.0,83688.0,0.0984]
[1744780861763,0.13329886,83689.0,83688.0,0.09848]
[1744780861952,0.13329886,83689.0,83688.0,0.0984]
[1744780862147,0.13329886,83689.0,83688.0,0.10248]
[1744780862549,0.13329886,83689.0,83688.0,0.00408]
[1744780863257,0.13329886,83689.0,83688.0,0.004]
[1744780863561,0.13329886,83689.0,83688.0,0.00408]
[1744780864061,0.13329886,83689.0,83688.0,0.00108]
[1744780865153,0.1195109,83681.0,83680.0,0.000108]
[1744780865359,0.1195124,83680.0,83679.0,0.00513865]
[1744780865558,0.22526096,83680.0,83679.0,0.00513865]
[1744780866059,0.22526096,83680.0,83679.0,0.00521865]
[1744780870763,0.22526096,83680.0,83679.0,0.00513865]
[1744780871368,0.22526096,83680.0,83679.0,0.00521865]
[1744780871761,0.22526096,83680.0,83679.0,0.00513865]
[1744780871963,0.22526096,83680.0,83666.0,0.0427947]
[1744780871964,0.1195495,83656.0,83646.0,1.6332999]
[1744780872157,0.1195495,83656.0,83655.0,0.1195435]
[1744780872466,0.1195495,83656.0,83655.0,0.1496235]
[1744780872662,0.13034358,83656.0,83655.0,0.1496235]
[1744780873666,0.13034358,83656.0,83655.0,0.3247235]
[1744780874455,0.13034358,83656.0,83655.0,0.3560235]
[1744780875255,0.13034358,83656.0,83655.0,0.36500427]
[1744780875664,0.13034358,83656.0,83655.0,0.09338]
[1744780875867,0.16084358,83656.0,83655.0,8e-05]
[1744780876263,0.1195495,83654.0,83653.0,0.00514025]
[1744780877260,0.13034358,83654.0,83653.0,0.00514025]
[1744780877559,0.13034358,83654.0,83653.0,0.00614025]
[1744780878473,0.1195567,83649.0,83648.0,0.000108]
[1744780878770,0.1195595,83647.0,83646.0,1.60552]
[1744780878965,0.13035358,83647.0,83646.0,1.60552]
[1744780879569,0.22615358,83647.0,83646.0,1.6056]
[1744780880862,0.22615358,83647.0,83646.0,1.725161]
[1744780882358,0.01079408,83647.0,83646.0,1.725161]
[1744780882563,0.13035358,83647.0,83646.0,1.757861]
[1744780883057,0.13035358,83647.0,83646.0,1.791161]
[1744780884164,0.0597671,83665.0,83652.0,0.0597759]
[1744780884462,0.3608,83668.0,83662.0,0.1195381]
[1744780884667,0.0311,83667.0,83662.0,0.1195381]
[1744780884971,0.1195357,83664.0,83662.0,0.1195381]
[1744780885173,0.059767,83665.0,83662.0,0.1811381]
[1744780885467,0.0311,83667.0,83662.0,0.1811381]
[1744780885667,0.3608,83679.0,83662.0,0.4616]
[1744780885867,0.059754,83684.0,83681.0,0.1195109]
[1744780886769,0.1245124,83682.0,83681.0,0.1195109]
[1744780887164,0.1195124,83680.0,83679.0,0.0907563]
[1744780887761,0.1842124,83680.0,83679.0,0.1221563]
[1744780888670,0.1517124,83680.0,83679.0,0.1221563]
[1744780889270,0.1517124,83680.0,83679.0,0.0907563]
[1744780889474,0.1577124,83680.0,83679.0,0.0907563]
[1744780889873,0.1195152,83678.0,83677.0,0.11184]
[1744780890060,0.0597589,83677.0,83673.0,0.00017931]
[1744780890375,0.1195209,83674.0,83673.0,0.00017931]
[1744780891671,0.1195209,83674.0,83673.0,2.624e-05]
[1744780892272,0.1195209,83674.0,83639.0,0.18188167]
[1744780892273,0.1195681,83641.0,83639.0,0.18188167]
[1744780892462,0.4803681,83641.0,83639.0,0.18188167]
[1744780892662,0.1195695,83640.0,83639.0,0.30145267]
[1744780892864,0.1523695,83640.0,83639.0,0.18188167]
[1744780894675,0.1523695,83640.0,83639.0,0.18388167]
[1744780895374,0.1830695,83640.0,83639.0,0.18388167]
[1744780895572,0.0597879,83636.0,83627.0,0.00514185]
[1744780895873,0.1195838,83630.0,83629.0,0.031808]
[1744780896669,0.1307488,83630.0,83629.0,0.031808]
[1744780896872,0.1307488,83630.0,83629.0,0.000108]
[1744780897069,0.1307488,83630.0,83628.0,0.0332]
[1744780897070,0.1195853,83629.0,83628.0,0.001]
[1744780897274,0.5518503,83629.0,83628.0,0.001]
[1744780898274,0.1195953,83622.0,83621.0,0.00918178]
[1744780898578,0.1195996,83619.0,83617.0,0.1196017]
[1744780898764,0.1195996,83619.0,83618.0,0.03272033]
[1744780898965,0.1307646,83619.0,83618.0,0.00262033]
[1744780899570,0.1307646,83619.0,83618.0,0.00362033]
[1744780899980,0.1307646,83619.0,83618.0,0.00370033]
[1744780900163,0.0598045,83613.0,83608.0,0.18184321]
[1744780900366,0.4804139,83609.0,83608.0,0.18184321]
[1744780900678,0.4804139,83609.0,83601.0,0.00514345]
[1744780900679,0.1196239,83602.0,83601.0,0.00514345]
[1744780900977,0.4804239,83602.0,83601.0,0.00514345]
[1744780901270,0.0598144,83599.0,83594.0,0.000108]
[1744780901473,0.4804339,83595.0,83594.0,0.000108]
[1744780901675,0.1196453,83587.0,83586.0,0.0633]
[1744780901975,0.1196468,83586.0,83583.0,0.033408]
[1744780902168,0.1943118,83586.0,83585.0,0.35182147]
[1744780902769,0.1943118,83586.0,83585.0,0.35190147]
[1744780903268,0.1943118,83586.0,83585.0,0.47154967]
[1744780903878,0.1973118,83586.0,83585.0,0.35190147]
[1744780904375,0.1973118,83586.0,83585.0,0.47154967]
[1744780905572,0.1973118,83586.0,83585.0,0.35190147]
[1744780905773,0.1973118,83586.0,83585.0,0.47146967]
[1744780905970,0.1973118,83586.0,83585.0,0.47154967]
[1744780906174,0.1658118,83586.0,83585.0,0.47154967]
[1744780906479,0.014165,83586.0,83585.0,0.47154967]
[1744780906878,0.014165,83586.0,83585.0,0.50474967]
[1744780907074,0.014165,83586.0,83585.0,0.51474967]
[1744780907277,0.1196168,83607.0,83601.0,0.1196253]
[1744780907574,0.3608,83619.0,83604.0,0.119621]
[1744780907773,0.3608,83619.0,83604.0,0.299621]
[1744780907967,0.4206,83619.0,83604.0,0.549621]
[1744780908169,0.3608,83619.0,83604.0,0.549621]
[1744780908369,0.0598056,83611.0,83604.0,0.299621]
[1744780908569,0.0303,83609.0,83604.0,0.299621]
[1744780908876,0.12141536,83605.0,83604.0,0.459341]
[1744780909268,0.12141536,83605.0,83604.0,0.459421]
[1744780909874,0.12141536,83605.0,83604.0,0.1598]
[1744780910068,0.15361536,83605.0,83604.0,0.15972]
[1744780910472,0.15361536,83605.0,83604.0,0.1598]
[1744780910981,0.18461536,83605.0,83604.0,0.1598]
[1744780911170,0.18461536,83605.0,83604.0,0.15972]
[1744780911481,0.18961536,83605.0,83604.0,0.1598]
[1744780912177,0.18961536,83605.0,83604.0,0.1614288]
[1744780912384,0.18461536,83605.0,83604.0,0.1614288]
[1744780912681,0.19261536,83605.0,83604.0,0.1623488]
[1744780912882,0.19261536,83605.0,83604.0,0.1624288]
[1744780913277,0.19261536,83605.0,83604.0,0.16250896]
[1744780914776,0.07299576,83605.0,83604.0,0.12240996]
[1744780914979,0.16161536,83605.0,83604.0,0.12240996]
[1744780915779,0.19461536,83605.0,83604.0,0.12240996]
[1744780915978,0.18661536,83605.0,83604.0,0.12140996]
[1744780916176,0.19161536,83605.0,83604.0,0.12140996]
[1744780916780,0.19161536,83605.0,83604.0,0.12132996]
[1744780916986,0.19161536,83605.0,83604.0,0.12140996]
[1744780917487,0.19461536,83605.0,83604.0,0.12240996]
[1744780918177,0.18661536,83605.0,83604.0,0.12140996]
[1744780918370,0.19461536,83605.0,83604.0,0.12240996]
[1744780919278,0.18661536,83605.0,83604.0,0.12140996]
[1744780919472,0.20302489,83605.0,83604.0,0.12240996]
[1744780920484,0.1794456,83599.0,83598.0,0.1196285]
[1744780920879,0.25415513,83599.0,83598.0,0.1197085]
[1744780921781,0.13452413,83599.0,83598.0,0.1197085]
[1744780921978,0.14052413,83599.0,83598.0,0.1207085]
[1744780922381,0.08070953,83599.0,83598.0,0.1207085]
[1744780923284,0.20033773,83599.0,83598.0,0.1207085]
[1744780923485,0.20033773,83599.0,83598.0,0.00108]
[1744780923682,0.20033773,83599.0,83598.0,0.001]
[1744780923878,0.20033773,83599.0,83598.0,0.00108]
[1744780924983,0.20133773,83599.0,83598.0,0.00108]
[1744780925181,0.20133773,83599.0,83598.0,0.001]
[1744780925786,0.20133773,83599.0,83598.0,0.1206296]
[1744780925982,0.20133773,83599.0,83598.0,0.1207096]
[1744780926196,0.08170953,83599.0,83598.0,0.1206296]
[1744780926383,0.04850953,83599.0,83598.0,0.1207096]
[1744780926889,0.04850953,83599.0,83598.0,0.1826096]
[1744780927390,0.0391,83599.0,83598.0,0.1826096]
[1744780927991,0.0381,83599.0,83598.0,0.1826096]
[1744780930282,0.1577282,83599.0,83598.0,0.1826096]
[1744780930683,0.0381,83599.0,83598.0,0.1826096]
[1744780930884,0.006,83599.0,83598.0,0.1826096]
[1744780931092,0.006,83599.0,83598.0,0.3326096]
[1744780931297,0.00179576,83605.0,83604.0,0.119621]
[1744780931489,0.00179576,83605.0,83604.0,0.269621]
[1744780931891,0.00179576,83605.0,83604.0,0.332121]
[1744780932898,0.00979576,83605.0,83604.0,0.333121]
[1744780934398,0.00379576,83605.0,83604.0,0.332121]
[1744780935298,0.00179576,83605.0,83604.0,0.333121]
[1744780937401,0.00179576,83605.0,83604.0,0.332121]
[1744780939802,0.12141536,83605.0,83604.0,0.332121]
[1744780940007,0.12141536,83605.0,83604.0,0.119621]
[1744780940197,0.12141536,83605.0,83604.0,0.119701]
[1744780940994,0.00179576,83605.0,83604.0,0.119701]
[1744780941190,0.00579576,83605.0,83604.0,0.119621]
[1744780941390,0.00579576,83605.0,83604.0,0.119701]
[1744780941600,0.12541536,83605.0,83604.0,0.119701]
[1744780941797,0.18931536,83605.0,83604.0,8e-05]
[1744780942098,0.1196267,83600.0,83599.0,0.1197362]
[1744780942299,0.1196267,83600.0,83599.0,0.1196282]
[1744780942601,0.1196267,83600.0,83599.0,0.1197082]
[1744780942794,0.0614,83601.0,83600.0,0.1196267]
[1744780942991,0.0302,83601.0,83600.0,0.1196267]
[1744780944404,0.0332,83601.0,83600.0,0.1196267]
[1744780944593,0.003,83601.0,83600.0,0.1497267]
[1744780944794,0.003,83601.0,83600.0,0.1826267]
[1744780944996,0.36259576,83605.0,83604.0,0.119621]
[1744780945993,0.00179576,83605.0,83604.0,0.119621]
[1744780947199,0.00479576,83605.0,83604.0,0.119621]
[1744780947711,0.00379576,83605.0,83604.0,0.119621]
[1744780948710,0.00179576,83605.0,83604.0,0.119621]
[1744780949007,0.00379576,83605.0,83604.0,0.119621]
[1744780950709,0.00179576,83605.0,83604.0,0.119621]
[1744780950909,0.00379576,83605.0,83604.0,0.119621]
[1744780953511,0.00179576,83605.0,83604.0,0.119621]
[1744780953702,0.00379576,83605.0,83604.0,0.119621]